[Event "44th Chess Olympiad Open 2022"]
[Site "Chennai"]
[Date "2022.07.29"]
[Round "1.40"]
[White "Liu, Yeh Yang"]
[Black "Kazhgaleyev, Murtas"]
[Result "1/2-1/2"]
[WhiteElo "1994"]
[BlackElo "2536"]
[Annotator "TA"]
[PlyCount "149"]
[EventDate "2022.??.??"]
[TimeControl "60"]

{[%evp 9,149,0,0,0,6,0,0,0,0,-18,0,0,0,0,5,0,0,0,0,-14,0,10,0,0,0,-5,0,-35,0,
-8,0,-2,0,0,0,0,0,13,90,94,102,101,90,88,108,110,119,108,110,107,109,49,55,68,
62,66,66,52,105,96,104,105,104,100,123,114,112,95,105,103,125,107,108,110,111,
111,165,163,154,152,150,156,156,125,137,127,143,143,401,399,366,399,349,327,
433,415,478,478,467,458,501,524,512,487,510,520,443,219,558,537,555,348,307,87,
87,87,87,87,87,87,87,75,67,56,56,56,56,8,8,8,8,0,8,8,8,8,8,8,8,0,8,0]} 1. e4 {
[%emt 0:00:03]} c5 {[%emt 0:00:12]} 2. Nf3 {[%emt 0:00:05]} d6 {[%emt 0:00:07]}
3. c3 {[%emt 0:00:04]} Nf6 {[%emt 0:00:12]} 4. Be2 {[%emt 0:00:19]} Bg4 {
[%emt 0:00:40]} 5. e5 {[%emt 0:03:55]} dxe5 {[%emt 0:01:07]} 6. Nxe5 {[%emt 0:
00:00] B50: Sicilian: 2...d6, Miscellaneous.} Bxe2 {[%emt 0:00:58]} 7. Qxe2 {
[%emt 0:00:02]} ({Reject} 7. Kxe2 Qd5 8. d4 Nc6 $15) 7... Nbd7 {[%emt 0:00:21]}
8. Nc4 {[%emt 0:06:20][%cal Rc4d6]} e6 {[%emt 0:01:04] [#]} 9. a4 $146 {
[%emt 0:00:31]} ({Predecessor:} 9. O-O Be7 10. d3 b5 11. Nca3 a6 12. Bf4 O-O
13. Nc2 Nd5 14. Bg3 Bf6 15. Ne3 {½-½ (70) Portmann,D (2100)-Aranovitch,E 
(2278) Lugano 2006}) 9... Be7 {[%emt 0:00:46]} 10. O-O {[%emt 0:00:27]} O-O {
[%emt 0:00:16]} 11. d3 {[%emt 0:00:43]} Nb8 {[%emt 0:05:36]} 12. Bf4 {[%emt 0:
00:00]} Nc6 {[%emt 0:05:44]} 13. Nba3 {[%emt 0:02:31]} Qd7 {[%emt 0:02:09]} 14.
Rad1 {[%emt 0:01:41]} Rfd8 {[%emt 0:02:37]} 15. Bg3 {[%emt 0:06:05]} b6 {
[%emt 0:03:13]} 16. Rfe1 {[%emt 0:01:00]} Nd5 {[%emt 0:07:20]} 17. Qg4 {
[%emt 0:08:55]} Bf8 {[%emt 0:03:15]} 18. h4 {[%emt 0:03:50]} Nf6 {[%emt 0:00:
00]} 19. Qe2 {[%emt 0:04:22]} h6 {[%emt 0:02:18]} 20. Nb5 {[%emt 0:10:43]} Qb7
{[%emt 0:03:26]} 21. Qf3 {[%emt 0:06:50]} Nd5 {[%emt 0:10:40]} 22. d4 {[%emt 0:
00:00]} cxd4 $1 {[%emt 0:07:51]} 23. Nxd4 {[%emt 0:00:02]} Rac8 {[%emt 0:07:22]
} (23... Nxd4 $11 {keeps the balance.} 24. Rxd4 Qd7) 24. Nb5 $1 $16 {[%emt 0:
00:00]} Qa6 {[%emt 0:09:50]} 25. b3 {[%emt 0:04:59]} Rd7 {[%emt 0:02:22]} 26.
Ne3 {[%emt 0:06:31]} Rcd8 {[%emt 0:05:07]} 27. Nxd5 $1 {[%emt 0:00:10]} exd5 {
[%emt 0:04:13]} 28. Bc7 {[%emt 0:02:41]} Rc8 {[%emt 0:00:09] [#]} 29. Bf4 {
[%emt 0:00:04]} Rcd8 {[%emt 0:02:15]} 30. Qg4 {[%emt 0:00:47]} (30. Nc7 $16 Qc8
31. Nxd5) 30... Qc8 $14 {[%emt 0:01:37]} 31. Bxh6 {[%emt 0:01:24]} a6 {[%emt 0:
00:00]} 32. Nd4 {[%emt 0:00:16] 0x0.0002df01800adp-1022s more active pieces.}
Nxd4 {[%emt 0:01:30]} 33. cxd4 {[%emt 0:00:01]} Re7 {[%emt 0:02:18]} (33... Rc7
$14 34. Qxc8 Rdxc8) 34. Qg3 $36 {[%emt 0:01:11] White has strong initiative.}
Rde8 {[%emt 0:01:46]} 35. Rxe7 {[%emt 0:00:02]} Rxe7 {[%emt 0:00:00]} 36. Rc1 {
[%emt 0:00:38]} Qe6 {[%emt 0:01:15]} 37. Bg5 {[%emt 0:00:28]} Re8 {[%emt 0:00:
12]} 38. Bf4 {[%emt 0:00:30]} Qf5 {[%emt 0:01:17]} 39. Be5 {[%emt 0:01:07]} Kh7
{[%emt 0:00:33]} 40. Qg5 {[%emt 0:09:43]} Qxg5 {[%emt 0:00:00]} 41. hxg5 {
[%emt 0:30:01] Endgame KRB-KRB} Kg6 {[%emt 0:30:07]} 42. Rc7 {[%emt 0:02:20]}
Be7 {[%emt 0:00:00]} (42... Bb4 $16 {is a better defense.}) 43. Rc6+ $18 {
[%emt 0:00:00]} Kf5 {[%emt 0:00:00]} 44. Rxb6 {[%emt 0:00:00]} Bxg5 {[%emt 0:
00:00]} 45. Rxa6 {[%emt 0:00:00]} f6 {[%emt 0:00:00]} 46. Bc7 {[%emt 0:06:31]
Hoping for b4.} Re1+ {[%emt 0:00:00]} 47. Kh2 {[%emt 0:01:35]} Rb1 {[%emt 0:00:
00]} 48. Rb6 {[%emt 0:00:00] Strongly threatening a5.} Ke4 $2 {[%emt 0:00:00]}
(48... Bd2 $16 {keeps fighting.}) 49. a5 {[%emt 0:00:00]} Ra1 {[%emt 0:00:00]}
50. a6 {[%emt 0:00:00]} Bd2 {[%emt 0:00:00]} 51. Rc6 {[%emt 0:00:00]} Bb4 {
[%emt 0:00:00]} 52. f3+ {[%emt 0:00:00]} Kd3 {[%emt 0:00:00]} 53. Kg3 {[%emt 0:
00:00]} Bc3 {[%emt 0:00:00]} 54. Kg4 {[%emt 0:00:00]} Ra2 {[%emt 0:00:00]} 55.
Kf5 {[%emt 0:00:00]} Bxd4 {[%emt 0:01:15]} 56. b4 {[%emt 0:00:00]} Ba7 {
[%emt 0:01:08]} 57. b5 {[%emt 0:00:00]} d4 {[%emt 0:00:13]} 58. Rd6 {[%emt 0:
00:00]} (58. Bd8 $142) 58... Bc5 $2 {[%emt 0:01:58]} (58... Ke2 59. Re6+ Kd3)
59. Rd8 {[%emt 0:00:00]} Ke2 {[%emt 0:01:19]} 60. Re8+ {[%emt 0:00:00]} Kf1 {
[%emt 0:00:53] [#]} 61. b6 $2 {[%emt 0:00:00]} (61. Ke4 $1 $18) 61... Bxb6 $16
{[%emt 0:02:26]} 62. Bxb6 {[%emt 0:00:00] And now a7 would win.} Rxa6 {[%emt 0:
00:04]} 63. Bxd4 {[%emt 0:00:00] aiming for g4.} Kxg2 {[%emt 0:00:04] KRB-KR}
64. Re3 {[%emt 0:00:00] Kg6 is the strong threat.} Ra5+ {[%emt 0:00:23]} 65.
Ke4 {[%emt 0:00:40] Black must now prevent f4.} Kg3 {[%emt 0:00:27]} 66. Rb3 {
[%emt 0:06:20]} f5+ {[%emt 0:00:36]} 67. Ke3 {[%emt 0:00:02]} g5 {[%emt 0:00:
12]} 68. Bb6 {[%emt 0:00:00]} (68. Bc3 $14 {is superior.} f4+ 69. Ke4 Ra4+ 70.
Bd4) 68... Ra4 $11 {[%emt 0:00:55] The position is equal.} 69. Ke2 {[%emt 0:01:
11]} Ra2+ {[%emt 0:00:00]} 70. Ke3 {[%emt 0:00:08]} Ra4 {[%emt 0:00:08]} 71.
Bc7+ {[%emt 0:00:56]} f4+ {[%emt 0:00:09]} 72. Ke2 {[%emt 0:00:02]} Ra2+ {
[%emt 0:00:09]} 73. Ke1 {[%emt 0:00:18]} Ra1+ {[%emt 0:00:27]} 74. Ke2 {
[%emt 0:00:02]} Ra2+ {[%emt 0:00:00]} 75. Ke1 {[%emt 0:03:17] Black defended
with fortune. Weighted Error Value: White=0.12 (very precise) /Black=0.24 
(precise)} 1/2-1/2

[Event "44th Chess Olympiad Open 2022"]
[Site "Chennai"]
[Date "2022.07.29"]
[Round "1.40"]
[White "Wu, Bing-Shen"]
[Black "Nogerbek, Kazybek"]
[Result "0-1"]
[WhiteElo "1660"]
[BlackElo "2437"]
[Annotator "RC"]
[PlyCount "88"]
[EventDate "2022.??.??"]
[TimeControl "60"]

1. c4 {[%emt 0:00:07]} c5 {[%emt 0:00:40]} 2. Nc3 {[%emt 0:00:12]} Nc6 {
[%emt 0:00:19]} 3. g3 {[%emt 0:00:27]} g6 {[%emt 0:00:25]} 4. Bg2 {[%emt 0:00:
00]} Bg7 {[%emt 0:00:10]} 5. e4 {[%emt 0:00:31]} Nf6 {[%emt 0:00:40]} 6. Nge2 {
[%emt 0:01:05]} O-O {[%emt 0:03:34]} 7. O-O {[%emt 0:02:18]} Ne8 {[%emt 0:00:
00]} 8. d3 {[%emt 0:04:19]} Nc7 {[%emt 0:01:11]} 9. Be3 {[%emt 0:01:44]} Ne6 {
[%emt 0:00:13]} 10. Rb1 {[%emt 0:06:19]} Ned4 {[%emt 0:02:28]} 11. a3 {[%emt 0:
00:00]} a5 {[%emt 0:01:07]} 12. h3 {[%emt 0:14:18]} d6 {[%emt 0:03:25]} 13. g4
{[%emt 0:05:08]} e5 {[%emt 0:05:36]} 14. Ng3 {[%emt 0:09:37]} Be6 {[%emt 0:00:
00]} 15. Qd2 {[%emt 0:04:33]} Nb3 {[%emt 0:02:24]} 16. Qd1 {[%emt 0:01:08]}
Nbd4 {[%emt 0:00:15]} 17. Qd2 {[%emt 0:00:10]} Rb8 {[%emt 0:00:52]} 18. Bh6 {
[%emt 0:05:49]} f6 {[%emt 0:03:22]} 19. Bxg7 {[%emt 0:06:46]} Kxg7 {[%emt 0:00:
00]} 20. Kh2 {[%emt 0:04:10]} b5 {[%emt 0:02:13]} 21. cxb5 {[%emt 0:00:27]}
Nxb5 {[%emt 0:00:14]} 22. Nd5 {[%emt 0:00:55]} Nbd4 {[%emt 0:00:48]} 23. f4 {
[%emt 0:05:34]} exf4 {[%emt 0:00:40]} 24. Nxf4 {[%emt 0:00:35]} Qe7 {[%emt 0:
00:00]} 25. Rbe1 {[%emt 0:08:30]} Ne5 {[%emt 0:01:14]} 26. Rf2 {[%emt 0:02:59]}
a4 {[%emt 0:02:55]} 27. Ref1 {[%emt 0:00:47]} Kh8 {[%emt 0:00:30]} 28. Nxe6 {
[%emt 0:01:22]} Nxe6 {[%emt 0:00:23]} 29. Qc2 {[%emt 0:00:30]} Nd4 {[%emt 0:00:
00]} 30. Qd1 {[%emt 0:00:30]} Rf7 {[%emt 0:02:30]} 31. Rd2 {[%emt 0:00:21]} Rb3
{[%emt 0:00:27]} 32. Rff2 {[%emt 0:00:35]} Qf8 {[%emt 0:00:32]} 33. Nf1 {
[%emt 0:00:23]} Qh6 {[%emt 0:00:23]} 34. Kg1 {[%emt 0:00:41]} Qg5 {[%emt 0:00:
00]} 35. Kh1 {[%emt 0:00:30]} Ne6 {[%emt 0:01:54]} 36. Nh2 {[%emt 0:00:31]} Qe3
{[%emt 0:00:49]} 37. Nf1 {[%emt 0:00:28]} Qd4 {[%emt 0:00:08]} 38. Qc2 {
[%emt 0:00:32]} Nxd3 {[%emt 0:01:01]} 39. Rf3 {[%emt 0:00:05]} c4 {[%emt 0:00:
00]} 40. Ne3 {[%emt 0:00:27]} Ng5 {[%emt 0:01:41]} 41. Rg3 {[%emt 0:30:28]}
Nxe4 {[%emt 0:30:17]} 42. Bxe4 {[%emt 0:00:28]} Qxe4+ {[%emt 0:00:06]} 43. Kg1
{[%emt 0:00:12]} d5 {[%emt 0:00:14]} 44. Re2 {[%emt 0:00:47]} Nf4 {[%emt 0:00:
00]} 0-1

[Event "44th Chess Olympiad Open 2022"]
[Site "Chennai"]
[Date "2022.07.29"]
[Round "1.41"]
[White "Borisek, Jure"]
[Black "Ali Abdullahi, Farah"]
[Result "1-0"]
[WhiteElo "2577"]
[BlackElo "1892"]
[Annotator "RC"]
[PlyCount "61"]
[EventDate "2022.??.??"]
[TimeControl "60"]

1. e4 {[%emt 0:00:09]} c5 {[%emt 0:00:15]} 2. Nf3 {[%emt 0:00:08]} d6 {[%emt 0:
00:00]} 3. d4 {[%emt 0:00:08]} cxd4 {[%emt 0:00:14]} 4. Nxd4 {[%emt 0:00:03]}
a6 {[%emt 0:00:02]} 5. c4 {[%emt 0:00:35]} Nf6 {[%emt 0:00:44]} 6. Nc3 {
[%emt 0:00:18]} e5 {[%emt 0:00:29]} 7. Nc2 {[%emt 0:02:58]} Be7 {[%emt 0:01:09]
} 8. Be2 {[%emt 0:01:32]} Be6 {[%emt 0:01:29]} 9. O-O {[%emt 0:01:19]} O-O {
[%emt 0:01:38]} 10. Be3 {[%emt 0:08:11]} Qc7 {[%emt 0:06:41]} 11. b3 {[%emt 0:
00:00]} Nbd7 {[%emt 0:08:16]} 12. f3 {[%emt 0:05:46]} Ne8 {[%emt 0:16:05]} 13.
Qd2 {[%emt 0:03:26]} f6 {[%emt 0:09:49]} 14. Nb4 {[%emt 0:03:27]} Rc8 {[%emt 0:
00:00]} 15. Nbd5 {[%emt 0:01:49]} Qd8 {[%emt 0:01:24]} 16. f4 {[%emt 0:06:04]}
Kh8 {[%emt 0:08:05]} 17. f5 {[%emt 0:03:28]} Bg8 {[%emt 0:03:12]} 18. Rad1 {
[%emt 0:02:06]} Rc6 {[%emt 0:06:34]} 19. Rf3 {[%emt 0:01:22]} Nb8 {[%emt 0:00:
00]} 20. Rh3 {[%emt 0:00:29]} Nc7 {[%emt 0:02:38]} 21. Bh5 {[%emt 0:02:43]}
Nxd5 {[%emt 0:07:14]} 22. exd5 {[%emt 0:02:42]} Rc8 {[%emt 0:03:28]} 23. Bg6 {
[%emt 0:00:11]} Nd7 {[%emt 0:01:17]} 24. Ne4 {[%emt 0:05:25]} Qc7 {[%emt 0:00:
00]} 25. Bh6 {[%emt 0:03:47]} Rf7 {[%emt 0:03:17]} 26. Bxf7 {[%emt 0:00:20]}
Bxf7 {[%emt 0:00:16]} 27. Bxg7+ {[%emt 0:00:09]} Kxg7 {[%emt 0:00:44]} 28. Qh6+
{[%emt 0:00:06]} Kg8 {[%emt 0:00:30]} 29. Rg3+ {[%emt 0:00:14]} Bg6 {[%emt 0:
00:00]} 30. fxg6 {[%emt 0:00:05]} Bf8 {[%emt 0:00:38]} 31. Qxh7# {[%emt 0:00:
00]} 1-0

[Event "44th Chess Olympiad Open 2022"]
[Site "Chennai"]
[Date "2022.07.29"]
[Round "1.41"]
[White "Dobrovoljc, Vid"]
[Black "Nor, Mohamed Ahmed"]
[Result "1-0"]
[WhiteElo "2398"]
[BlackElo "1907"]
[Annotator "RC"]
[PlyCount "30"]
[EventDate "2022.??.??"]
[TimeControl "60"]

1. e4 {[%emt 0:00:10]} c5 {[%emt 0:00:20]} 2. Nf3 {[%emt 0:00:31]} Nc6 {
[%emt 0:00:33]} 3. Bb5 {[%emt 0:03:52]} Qc7 {[%emt 0:00:57]} 4. O-O {[%emt 0:
00:00]} e6 {[%emt 0:00:30]} 5. Re1 {[%emt 0:04:25]} Nge7 {[%emt 0:01:49]} 6. c3
{[%emt 0:03:55]} d5 {[%emt 0:01:38]} 7. exd5 {[%emt 0:13:00]} Nxd5 {[%emt 0:00:
00]} 8. d4 {[%emt 0:00:08]} cxd4 {[%emt 0:00:55]} 9. Qxd4 {[%emt 0:00:35]} Nf6
{[%emt 0:02:29]} 10. Bf4 {[%emt 0:03:10]} Qd7 {[%emt 0:01:10]} 11. Qa4 {
[%emt 0:08:12]} a6 {[%emt 0:06:24]} 12. Ne5 {[%emt 0:17:13]} axb5 {[%emt 0:00:
00]} 13. Qxa8 {[%emt 0:00:05]} Nxe5 {[%emt 0:00:50]} 14. Bxe5 {[%emt 0:00:09]}
Be7 {[%emt 0:01:27]} 15. Nd2 {[%emt 0:03:27]} O-O {[%emt 0:00:26]} 1-0

[Event "44th Chess Olympiad Open 2022"]
[Site "Chennai"]
[Date "2022.07.29"]
[Round "1.41"]
[White "Abdirahman Omar Sheikh"]
[Black "Sebenik Matej"]
[Result "1/2-1/2"]
[WhiteElo "2051"]
[BlackElo "2512"]
[Annotator "RC"]
[PlyCount "25"]
[EventDate "2022.??.??"]
[TimeControl "60"]

1. d4 {[%emt 0:00:06]} Nf6 {[%emt 0:00:12]} 2. c4 {[%emt 0:01:02]} g6 {[%emt 0:
00:00]} 3. Nf3 {[%emt 0:01:21]} Bg7 {[%emt 0:00:04]} 4. Nc3 {[%emt 0:00:19]}
O-O {[%emt 0:00:09]} 5. e4 {[%emt 0:00:08]} d6 {[%emt 0:00:07]} 6. Be2 {
[%emt 0:00:18]} e5 {[%emt 0:00:09]} 7. dxe5 {[%emt 0:01:16]} dxe5 {[%emt 0:00:
00]} 8. Qxd8 {[%emt 0:00:10]} Rxd8 {[%emt 0:00:06]} 9. Bg5 {[%emt 0:02:02]} c6
{[%emt 0:00:09]} 10. O-O {[%emt 0:03:23]} Bg4 {[%emt 0:04:52]} 11. Rfd1 {
[%emt 0:02:40]} Na6 {[%emt 0:12:12]} 12. h3 {[%emt 0:01:58]} Bxf3 {[%emt 0:00:
00]} 13. Bxf3 {[%emt 0:00:18]} 1/2-1/2

[Event "44th Chess Olympiad Open 2022"]
[Site "Chennai"]
[Date "2022.07.29"]
[Round "1.42"]
[White "Henriquez Villagra, Cristobal"]
[Black "Namale, Ben Nguku"]
[Result "1-0"]
[WhiteElo "2620"]
[BlackElo "1962"]
[Annotator "RC"]
[PlyCount "59"]
[EventDate "2022.??.??"]
[TimeControl "60"]

1. e4 {[%emt 0:00:05]} c6 {[%emt 0:00:24]} 2. d4 {[%emt 0:00:07]} d5 {[%emt 0:
00:00]} 3. f3 {[%emt 0:00:13]} dxe4 {[%emt 0:01:14]} 4. fxe4 {[%emt 0:00:07]}
Qb6 {[%emt 0:01:07]} 5. Nf3 {[%emt 0:04:10]} Nf6 {[%emt 0:04:43]} 6. e5 {
[%emt 0:01:47]} Ng8 {[%emt 0:04:19]} 7. Nbd2 {[%emt 0:05:10]} Bf5 {[%emt 0:00:
00]} 8. Nc4 {[%emt 0:01:08]} Qc7 {[%emt 0:03:03]} 9. Bd3 {[%emt 0:00:58]} Bxd3
{[%emt 0:02:25]} 10. Qxd3 {[%emt 0:00:08]} e6 {[%emt 0:00:35]} 11. O-O {
[%emt 0:00:43]} h6 {[%emt 0:01:51]} 12. Bf4 {[%emt 0:00:40]} Nd7 {[%emt 0:00:
00]} 13. Bg3 {[%emt 0:02:19]} b5 {[%emt 0:05:53]} 14. Ne3 {[%emt 0:02:14]} Nb6
{[%emt 0:17:59]} 15. a4 {[%emt 0:06:33]} Nxa4 {[%emt 0:20:13]} 16. b3 {[%emt 0:
00:00]} Nb6 {[%emt 0:01:19]} 17. Nd2 {[%emt 0:00:37]} Ne7 {[%emt 0:04:58]} 18.
c4 {[%emt 0:00:07]} Qd7 {[%emt 0:00:23]} 19. Ne4 {[%emt 0:01:00]} Nec8 {
[%emt 0:01:12]} 20. Bh4 {[%emt 0:08:43]} bxc4 {[%emt 0:03:50]} 21. bxc4 {
[%emt 0:00:10]} Be7 {[%emt 0:00:23]} 22. Bxe7 {[%emt 0:04:52]} Qxe7 {[%emt 0:
00:00]} 23. c5 {[%emt 0:00:25]} Nd7 {[%emt 0:05:36]} 24. Rf4 {[%emt 0:01:32]}
O-O {[%emt 0:02:30]} 25. Ng4 {[%emt 0:02:17]} h5 {[%emt 0:04:24]} 26. Ngf6+ {
[%emt 0:01:22]} Nxf6 {[%emt 0:00:53]} 27. Nxf6+ {[%emt 0:00:05]} gxf6 {[%emt 0:
00:00]} 28. Qg3+ {[%emt 0:00:15]} Kh7 {[%emt 0:00:51]} 29. Rh4 {[%emt 0:00:13]}
Kh6 {[%emt 0:00:36]} 30. Qg4 {[%emt 0:00:08]} 1-0

[Event "44th Chess Olympiad Open 2022"]
[Site "Chennai"]
[Date "2022.07.29"]
[Round "1.42"]
[White "Lopez Silva, Hugo"]
[Black "Mukoko, Isaac"]
[Result "1-0"]
[WhiteElo "2403"]
[BlackElo "1805"]
[Annotator "ChessBase"]
[PlyCount "61"]
[EventDate "2022.??.??"]
[TimeControl "60"]

1. e4 {[%emt 0:00:05]} c5 {[%emt 0:00:59]} 2. Nf3 {[%emt 0:00:18]} d6 {[%emt 0:
00:00]} 3. d4 {[%emt 0:00:20]} cxd4 {[%emt 0:00:37]} 4. Nxd4 {[%emt 0:00:03]}
Nf6 {[%emt 0:00:33]} 5. Nc3 {[%emt 0:00:15]} a6 {[%emt 0:01:01]} 6. Be3 {
[%emt 0:03:14]} e6 {[%emt 0:03:52]} 7. g4 {[%emt 0:06:18]} h6 {[%emt 0:16:36]}
8. Bg2 {[%emt 0:19:04]} e5 {[%emt 0:07:26]} 9. Nf5 {[%emt 0:00:09]} g6 {
[%emt 0:02:26]} 10. Nxh6 {[%emt 0:22:06]} Bxh6 {[%emt 0:10:45]} 11. Bxh6 {
[%emt 0:01:17]} Nxg4 {[%emt 0:11:04]} 12. Bc1 {[%emt 0:03:56]} Be6 {[%emt 0:00:
00]} 13. h3 {[%emt 0:07:31]} Nf6 {[%emt 0:03:05]} 14. Bg5 {[%emt 0:01:13]} Qe7
{[%emt 0:02:30]} 15. Qf3 {[%emt 0:04:54]} Nbd7 {[%emt 0:01:23]} 16. h4 {
[%emt 0:06:47]} Rc8 {[%emt 0:05:53]} 17. Bh3 {[%emt 0:09:00]} b5 {[%emt 0:00:
00]} 18. Nd5 {[%emt 0:03:17]} Bxd5 {[%emt 0:03:05]} 19. Bxd7+ {[%emt 0:00:38]}
Kxd7 {[%emt 0:04:17]} 20. exd5 {[%emt 0:00:27]} Rh5 {[%emt 0:05:47]} 21. Bxf6 {
[%emt 0:02:54]} Qf8 {[%emt 0:00:39]} 22. Qh3+ {[%emt 0:01:59]} Kc7 {[%emt 0:00:
00]} 23. O-O-O {[%emt 0:02:30]} Kb7 {[%emt 0:00:40]} 24. Bg5 {[%emt 0:00:30]}
f6 {[%emt 0:00:44]} 25. Be3 {[%emt 0:00:23]} Rc4 {[%emt 0:00:45]} 26. Qd7+ {
[%emt 0:01:40]} Rc7 {[%emt 0:00:20]} 27. Qg4 {[%emt 0:00:03]} Qe8 {[%emt 0:00:
00]} 28. Rhg1 {[%emt 0:00:16]} Rg7 {[%emt 0:00:29]} 29. Qxh5 {[%emt 0:00:15]}
f5 {[%emt 0:01:58]} 30. Qxf5 {[%emt 0:00:40]} gxf5 {[%emt 0:00:38]} 31. Rxg7+ {
[%emt 0:00:05]} 1-0

[Event "44th Chess Olympiad Open 2022"]
[Site "Chennai"]
[Date "2022.07.29"]
[Round "1.42"]
[White "Njoroge, Martin"]
[Black "Perez Gormaz, Matias"]
[Result "0-1"]
[WhiteElo "1973"]
[BlackElo "2387"]
[Annotator "RC"]
[PlyCount "76"]
[EventDate "2022.??.??"]
[TimeControl "60"]

1. d4 {[%emt 0:02:47]} Nf6 {[%emt 0:01:37]} 2. c4 {[%emt 0:01:04]} e6 {[%emt 0:
00:00]} 3. Nf3 {[%emt 0:00:14]} a6 {[%emt 0:01:42]} 4. Nc3 {[%emt 0:02:01]} d5
{[%emt 0:00:07]} 5. cxd5 {[%emt 0:01:05]} exd5 {[%emt 0:00:10]} 6. Bg5 {
[%emt 0:01:00]} Be6 {[%emt 0:01:44]} 7. e3 {[%emt 0:06:49]} Nbd7 {[%emt 0:00:
00]} 8. Bd3 {[%emt 0:01:37]} Bd6 {[%emt 0:01:10]} 9. O-O {[%emt 0:01:01]} O-O {
[%emt 0:02:37]} 10. Rb1 {[%emt 0:01:49]} c6 {[%emt 0:05:02]} 11. b4 {[%emt 0:
00:00]} Qc7 {[%emt 0:03:53]} 12. h3 {[%emt 0:09:27]} h6 {[%emt 0:07:42]} 13.
Bxf6 {[%emt 0:01:59]} Nxf6 {[%emt 0:00:06]} 14. Qc2 {[%emt 0:03:16]} Qe7 {
[%emt 0:08:49]} 15. a3 {[%emt 0:02:54]} a5 {[%emt 0:01:37]} 16. Qb2 {[%emt 0:
00:00]} Nd7 {[%emt 0:18:26]} 17. Rfe1 {[%emt 0:15:16]} f5 {[%emt 0:11:48]} 18.
Ne2 {[%emt 0:09:03]} Qf6 {[%emt 0:00:30]} 19. Nf4 {[%emt 0:02:07]} axb4 {
[%emt 0:10:32]} 20. axb4 {[%emt 0:00:36]} Bf7 {[%emt 0:00:47]} 21. Bf1 {
[%emt 0:03:24]} Rae8 {[%emt 0:07:23]} 22. Qd2 {[%emt 0:11:55]} g5 {[%emt 0:00:
00]} 23. Nd3 {[%emt 0:01:03]} g4 {[%emt 0:01:01]} 24. Nh2 {[%emt 0:01:22]} g3 {
[%emt 0:09:41]} 25. Nf3 {[%emt 0:01:06]} Qg7 {[%emt 0:00:01]} 26. Nf4 {[%emt 0:
00:00]} Nf6 {[%emt 0:00:10]} 27. fxg3 {[%emt 0:02:47]} Ne4 {[%emt 0:00:15]} 28.
Qc2 {[%emt 0:00:19]} Qxg3 {[%emt 0:00:12]} 29. Ne5 {[%emt 0:06:47]} Rxe5 {
[%emt 0:00:30]} 30. dxe5 {[%emt 0:00:39]} Bxe5 {[%emt 0:00:02]} 31. Bd3 {
[%emt 0:02:00]} d4 {[%emt 0:00:17]} 32. Bxe4 {[%emt 0:00:42]} dxe3 {[%emt 0:00:
00]} 33. Bxf5 {[%emt 0:01:43]} Bxf4 {[%emt 0:00:30]} 34. Bh7+ {[%emt 0:00:46]}
Kh8 {[%emt 0:00:13]} 35. Qc5 {[%emt 0:00:28]} Qh2+ {[%emt 0:01:01]} 36. Kf1 {
[%emt 0:00:08]} Qh1+ {[%emt 0:00:38]} 37. Ke2 {[%emt 0:00:35]} Qxg2+ {[%emt 0:
00:00]} 38. Kd3 {[%emt 0:00:18]} Qd2+ {[%emt 0:01:23]} 0-1

[Event "44th Chess Olympiad Open 2022"]
[Site "Chennai"]
[Date "2022.07.29"]
[Round "1.42"]
[White "Hinga, Githinji"]
[Black "Morovic Fernandez, Ivan"]
[Result "0-1"]
[WhiteElo "1954"]
[BlackElo "2489"]
[Annotator "ChessBase"]
[PlyCount "70"]
[EventDate "2022.??.??"]
[TimeControl "60"]

1. e4 {[%emt 0:00:59]} e5 {[%emt 0:00:46]} 2. Bc4 {[%emt 0:01:37]} Nf6 {
[%emt 0:00:25]} 3. Qe2 {[%emt 0:01:38]} Nc6 {[%emt 0:03:22]} 4. Nf3 {[%emt 0:
00:00]} Be7 {[%emt 0:03:20]} 5. d3 {[%emt 0:02:51]} O-O {[%emt 0:00:54]} 6. c3
{[%emt 0:02:07]} d5 {[%emt 0:07:59]} 7. exd5 {[%emt 0:08:57]} Nxd5 {[%emt 0:00:
00]} 8. Nxe5 {[%emt 0:01:49]} Nxe5 {[%emt 0:11:04]} 9. Qxe5 {[%emt 0:00:22]}
Be6 {[%emt 0:11:58]} 10. O-O {[%emt 0:05:18]} Re8 {[%emt 0:04:29]} 11. Qg3 {
[%emt 0:11:54]} c6 {[%emt 0:06:02]} 12. Nd2 {[%emt 0:03:50]} Bd6 {[%emt 0:00:
00]} 13. Qf3 {[%emt 0:01:45]} Qh4 {[%emt 0:05:34]} 14. g3 {[%emt 0:01:01]} Qh3
{[%emt 0:00:32]} 15. Ne4 {[%emt 0:02:07]} Be7 {[%emt 0:03:13]} 16. Ng5 {
[%emt 0:05:02]} Bxg5 {[%emt 0:02:19]} 17. Bxg5 {[%emt 0:02:29]} Bg4 {[%emt 0:
00:00]} 18. Qg2 {[%emt 0:00:20]} Qh5 {[%emt 0:00:24]} 19. h4 {[%emt 0:00:44]}
Bf3 {[%emt 0:03:46]} 20. Qh3 {[%emt 0:02:24]} h6 {[%emt 0:01:59]} 21. Bc1 {
[%emt 0:01:40]} Bg4 {[%emt 0:03:43]} 22. Qh1 {[%emt 0:01:09]} Be2 {[%emt 0:00:
00]} 23. Bxd5 {[%emt 0:10:19]} cxd5 {[%emt 0:02:34]} 24. Be3 {[%emt 0:01:33]}
Bxf1 {[%emt 0:03:01]} 25. Kxf1 {[%emt 0:02:30]} Qf5 {[%emt 0:02:14]} 26. Ke2 {
[%emt 0:01:59]} d4 {[%emt 0:00:41]} 27. cxd4 {[%emt 0:00:23]} Rac8 {[%emt 0:00:
00]} 28. Rc1 {[%emt 0:01:56]} Qh5+ {[%emt 0:00:57]} 29. Kd2 {[%emt 0:06:07]}
Qa5+ {[%emt 0:00:15]} 30. Kd1 {[%emt 0:00:45]} Qb5 {[%emt 0:01:57]} 31. Rxc8 {
[%emt 0:05:16]} Qxd3+ {[%emt 0:00:59]} 32. Ke1 {[%emt 0:00:54]} Rxc8 {[%emt 0:
00:00]} 33. Qxb7 {[%emt 0:06:36]} Rc2 {[%emt 0:01:28]} 34. Qa8+ {[%emt 0:00:23]
} Kh7 {[%emt 0:00:04]} 35. Qf3 {[%emt 0:00:27]} Rc1+ {[%emt 0:03:28]} 0-1